fUST/lending_fUST_20241014
["ID","MTS","AMOUNT","RATE_DAILY","PERIOD"]
[340223494,1728856244639,-151.0,0.00025073,7]
[340223495,1728856244650,-310.649328,0.00025073,7]
[340223496,1728856244661,-310.649328,0.00025073,7]
[340223497,1728856244673,-310.649328,0.00025073,7]
[340223498,1728856244683,-310.649328,0.00025073,7]
[340223499,1728856244692,-151.0,0.00025073,7]
[340223500,1728856244703,-151.0,0.00025073,7]
[340223501,1728856244715,-151.0,0.00025073,7]
[340223502,1728856244728,-271.88954,0.00025073,7]
[340223503,1728856244739,-271.88954,0.00025073,7]
[340223504,1728856244749,-271.88954,0.00025073,7]
[340223505,1728856244759,-271.88954,0.00025073,7]
[340223506,1728856244770,-271.88954,0.00025073,7]
[340223507,1728856244781,-271.88954,0.00025073,7]
[340223508,1728856244792,-269.02378,0.00025073,7]
[340223509,1728856244802,-269.02378,0.00025073,7]
[340223510,1728856244813,-269.02378,0.00025073,7]
[340223511,1728856244824,-269.02378,0.00025073,7]
[340223512,1728856244835,-269.02378,0.00025073,7]
[340223513,1728856244846,-269.02378,0.00025073,7]
[340223514,1728856244856,-870.235256,0.00025073,7]
[340223515,1728856244866,-870.235256,0.00025073,7]
[340223516,1728856244877,-870.235256,0.00025073,7]
[340223517,1728856244888,-870.235256,0.00025073,7]
[340223518,1728856244898,-870.235256,0.00025073,7]
[340223519,1728856244909,-870.235256,0.00025073,7]
[340223520,1728856244921,-196.392212,0.00025073,7]
[340223521,1728856244933,-196.392212,0.00025073,7]
[340223522,1728856244945,-196.392212,0.00025073,7]
[340223523,1728856244956,-196.392212,0.00025073,7]
[340223524,1728856244966,-196.392212,0.00025073,7]
[340223525,1728856244977,-196.392212,0.00025073,7]
[340223526,1728856244987,-258.082612,0.00025076,7]
[340223527,1728856244998,-151.0,0.00025076,7]
[340223528,1728856245009,-151.0,0.00025076,7]
[340223529,1728856245019,-271.88954,0.00025076,7]
[340223530,1728856245030,-271.88954,0.00025076,7]
[340223531,1728856245039,-271.88954,0.00025076,7]
[340223532,1728856245048,-271.889543,0.00025076,7]
[340223533,1728856245057,-269.02378,0.00025076,7]
[340223534,1728856245069,-269.02378,0.00025076,7]
[340223535,1728856245078,-269.02378,0.00025076,7]
[340223536,1728856245088,-269.023788,0.00025076,7]
[340223537,1728856245097,-870.235256,0.00025076,7]
[340223538,1728856245107,-870.235247,0.00025076,7]
[340223539,1728856245116,-196.392212,0.00025076,7]
[340223540,1728856245125,-196.392212,0.00025076,7]
[340223541,1728856245134,-196.392212,0.00025076,7]
[340223542,1728856245143,-196.392204,0.00025076,7]
[340223543,1728856245152,-1000.0,0.00025077,2]
[340223544,1728856245161,-151.0,0.00025078,7]
[340223545,1728856245171,-151.0,0.00025078,7]
[340223546,1728856245180,-151.0,0.00025078,7]
[340223547,1728856245190,-151.0,0.00025078,7]
[340223548,1728856245199,-151.0,0.00025078,7]
[340223549,1728856245208,-151.0,0.00025078,7]
[340223550,1728856245218,-151.0,0.00025078,7]
[340223551,1728856245227,-151.0,0.00025078,7]
[340223552,1728856245236,-151.0,0.00025078,3]
[340223553,1728856245245,-151.0,0.00025078,3]
[340223554,1728856245255,-151.0,0.00025078,7]
[340223555,1728856245264,-151.0,0.00025078,7]
[340223556,1728856245273,-151.0,0.00025078,7]
[340223557,1728856245282,-151.0,0.00025078,7]
[340223558,1728856245291,-310.649328,0.00025078,7]
[340223559,1728856245300,-310.649328,0.00025078,7]
[340223560,1728856245309,-310.649328,0.00025078,7]
[340223561,1728856245318,-310.649328,0.00025078,7]
[340223562,1728856245327,-310.649328,0.00025078,7]
[340223563,1728856245337,-310.649328,0.00025078,7]
[340223564,1728856245346,-310.649328,0.00025078,7]
[340223565,1728856245355,-310.649328,0.00025078,7]
[340223566,1728856245364,-310.649328,0.00025078,7]
[340223567,1728856245374,-310.649328,0.00025078,7]
[340223568,1728856245383,-151.0,0.00025079,7]
[340223569,1728856245392,-151.0,0.00025079,7]
[340223570,1728856245401,-151.0,0.00025079,7]
[340223571,1728856245411,-151.0,0.00025079,7]
[340223572,1728856245420,-151.0,0.00025079,7]
[340223573,1728856245429,-151.0,0.00025079,7]
[340223574,1728856245438,-151.0,0.00025079,7]
[340223575,1728856245448,-151.0,0.00025079,7]
[340223576,1728856245457,-155.384485,0.00025079,7]
[340223577,1728856245520,-287.827478,0.00025079,7]
[340223578,1728856245530,-151.0,0.00025079,7]
[340223579,1728856245539,-151.0,0.00025079,7]
[340223580,1728856245548,-221.01935,0.00025079,7]
[340223581,1728856245557,-221.01935,0.00025079,7]
[340223582,1728856245566,-221.01935,0.00025079,7]
[340223583,1728856245575,-221.01935,0.00025079,7]
[340223584,1728856245584,-221.01935,0.00025079,7]
[340223585,1728856245593,-221.01935,0.00025079,7]
[340223586,1728856245602,-151.0,0.00025079,7]
[340223587,1728856245611,-151.0,0.00025079,7]
[340223588,1728856245621,-162.143744,0.00025079,7]
[340223589,1728856245632,-151.0,0.00025079,7]
[340223590,1728856245643,-151.0,0.00025079,7]
[340223591,1728856245653,-154.427562,0.00025079,7]
[340223592,1728856245665,-151.0,0.00025079,7]
[340223593,1728856245675,-151.0,0.00025079,7]
[340223594,1728856245686,-151.0,0.00025079,7]
[340223595,1728856245697,-151.0,0.00025079,7]
[340223596,1728856245707,-151.0,0.00025079,7]
[340223597,1728856245718,-151.0,0.00025079,7]
[340223598,1728856245730,-151.0,0.00025079,7]
[340223599,1728856245740,-246.58957,0.00025079,7]
[340223600,1728856245750,-246.58957,0.00025079,7]
[340223601,1728856245761,-246.58957,0.00025079,7]
[340223602,1728856245773,-246.58957,0.00025079,7]
[340223603,1728856245784,-246.58957,0.00025079,7]
[340223604,1728856245793,-246.58957,0.00025079,7]
[340223605,1728856245803,-246.58957,0.00025079,7]
[340223606,1728856245814,-246.58957,0.00025079,7]
[340223607,1728856245826,-246.58957,0.00025079,7]
[340223608,1728856245836,-246.58957,0.00025079,7]
[340223609,1728856245846,-246.58957,0.00025079,7]
[340223610,1728856245856,-246.58957,0.00025079,7]
[340223612,1728856245866,-246.58957,0.00025079,7]
[340223613,1728856245875,-246.58957,0.00025079,7]
[340223614,1728856245886,-246.58957,0.00025079,7]
[340223615,1728856245897,-246.589563,0.00025079,7]
[340223616,1728856245907,-151.0,0.00025079,7]
[340223617,1728856245918,-207.797302,0.00025079,7]
[340223619,1728856245928,-207.797302,0.00025079,7]
[340223620,1728856245939,-207.797302,0.00025079,7]
[340223621,1728856245950,-207.797302,0.00025079,7]
[340223622,1728856245962,-207.797302,0.00025079,7]
[340223623,1728856245973,-207.797302,0.00025079,7]
[340223625,1728856245984,-207.797302,0.00025079,7]
[340223626,1728856245993,-207.797302,0.00025079,7]
[340223628,1728856246003,-207.797302,0.00025079,7]
[340223629,1728856246014,-151.0,0.00025079,7]
[340223630,1728856246023,-207.797302,0.00025079,7]
[340223631,1728856246033,-207.797302,0.00025079,7]
[340223632,1728856246042,-151.0,0.00025079,7]
[340223633,1728856246051,-207.797302,0.00025079,7]
[340223634,1728856246061,-151.0,0.00025079,7]
[340223635,1728856246070,-207.797302,0.00025079,7]
[340223636,1728856246079,-274.432926,0.00025079,7]
[340223637,1728856246088,-207.797302,0.00025079,7]
[340223638,1728856246098,-207.797302,0.00025079,7]
[340223639,1728856246107,-207.79731,0.00025079,7]
[340223640,1728856246116,-151.0,0.00025079,7]
[340223641,1728856246126,-151.0,0.00025079,7]
[340223642,1728856246136,-151.0,0.00025079,7]
[340223643,1728856246145,-151.0,0.00025079,7]
[340223644,1728856246154,-151.0,0.00025079,7]
[340223645,1728856246164,-151.0,0.00025079,7]
[340223646,1728856246175,-151.0,0.00025079,7]
[340223647,1728856246185,-161.642316,0.00025079,7]
[340223648,1728856246196,-151.0,0.00025079,3]
[340223649,1728856246207,-151.0,0.00025079,3]
[340223651,1728856246220,-151.0,0.00025079,3]
[340223652,1728856246230,-151.0,0.00025079,3]
[340223653,1728856246240,-151.0,0.00025079,3]
[340223654,1728856246252,-151.0,0.00025079,3]
[340223655,1728856246263,-151.0,0.00025079,7]
[340223656,1728856246275,-151.0,0.00025079,7]
[340223657,1728856246286,-151.0,0.00025079,7]
[340223658,1728856246297,-278.169442,0.00025079,7]
[340223659,1728856246308,-151.0,0.0002508,7]
[340223660,1728856246317,-151.0,0.0002508,7]
[340223661,1728856246327,-151.0,0.0002508,7]
[340223662,1728856246337,-151.0,0.0002508,7]
[340223663,1728856246347,-219.701587,0.0002508,7]
[340223664,1728856246358,-151.0,0.0002508,7]
[340223665,1728856246368,-151.0,0.0002508,7]
[340223666,1728856246378,-151.0,0.0002508,7]
[340223667,1728856246388,-151.0,0.0002508,7]
[340223668,1728856246397,-190.689129,0.0002508,7]
[340223669,1728856246407,-221.01935,0.0002508,7]
[340223670,1728856246418,-221.01935,0.0002508,7]
[340223671,1728856246428,-221.01935,0.0002508,7]
[340223672,1728856246438,-221.01935,0.0002508,7]
[340223673,1728856246449,-151.0,0.0002508,7]
[340223674,1728856246458,-151.0,0.0002508,7]
[340223675,1728856246468,-151.0,0.0002508,7]
[340223676,1728856246478,-151.0,0.0002508,7]
[340223677,1728856246491,-714.62315772,0.0002508,3]
[340223678,1728856246501,-151.0,0.00025087,7]
[340223679,1728856246511,-151.0,0.00025087,7]
[340223680,1728856246522,-151.0,0.00025087,7]
[340223681,1728856246534,-151.0,0.00025087,7]
[340223682,1728856246545,-151.0,0.00025087,7]
[340223683,1728856246555,-151.0,0.00025087,7]
[340223684,1728856246565,-221.01935,0.00025087,7]
[340223685,1728856246575,-221.01935,0.00025087,7]
[340223686,1728856246586,-269.695045,0.00025087,7]
[340223687,1728856246596,-151.0,0.00025088,7]
[340223688,1728856246607,-151.0,0.00025088,7]
[340223689,1728856246618,-151.0,0.00025088,7]
[340223690,1728856246627,-151.0,0.00025088,7]
[340223691,1728856246636,-151.0,0.00025088,7]
[340223692,1728856246645,-293.34,0.00025088,7]
[340223693,1728856246655,-151.0,0.00025088,7]
[340223694,1728856246666,-151.0,0.00025088,7]
[340223695,1728856246727,-151.0,0.00025088,7]
[340223696,1728856246738,-151.0,0.00025088,7]
[340223697,1728856246748,-151.0,0.00025088,7]
[340223698,1728856246759,-151.0,0.00025088,7]
[340223699,1728856246769,-151.0,0.00025088,7]
[340223700,1728856246779,-221.891369,0.00025088,7]
[340223701,1728856246789,-221.01935,0.00025088,7]
[340223702,1728856246799,-221.01935,0.00025088,7]
[340223703,1728856246811,-221.01935,0.00025088,7]
[340223704,1728856246820,-221.01935,0.00025088,7]
[340223705,1728856246831,-221.01935,0.00025088,7]
[340223706,1728856246842,-221.01935,0.00025088,7]
[340223707,1728856246852,-221.01935,0.00025088,7]
[340223708,1728856246862,-221.01936,0.00025088,7]
[340223709,1728856246872,-151.0,0.00025089,7]
[340223710,1728856246882,-151.0,0.00025089,7]
[340223711,1728856246891,-151.0,0.00025089,7]
[340223712,1728856246900,-151.0,0.00025089,7]
[340223713,1728856246909,-151.0,0.00025089,7]
[340223714,1728856246919,-20852.83378725,0.0002509,2]
[340223715,1728856246928,-151.0,0.0002509,7]
[340223716,1728856246938,-151.0,0.0002509,7]
[340223717,1728856246947,-266.30723,0.0002509,7]
[340223718,1728856246958,-150.112233,0.000251,5]
[340223719,1728856246967,-150.112233,0.000251,7]
[340223720,1728856246976,-1671.6,0.000251,14]
[340223721,1728856246986,-2802.97,0.000251,14]
[340223722,1728856246996,-233.656,0.00025158,9]
[340223723,1728856247007,-150.112233,0.000252,6]
[340223724,1728856247018,-500.0,0.0002527,2]
[340223725,1728856247028,-239.49354593,0.00025317,2]
[340223726,1728856247039,-150.112233,0.000254,8]
[340223727,1728856247050,-150.112233,0.000254,5]
[340223728,1728856247061,-150.112233,0.000256,6]
[340223729,1728856247071,-150.112233,0.000256,6]
[340223730,1728856247081,-239.49354593,0.00025656,2]
[340223731,1728856247091,-150.112233,0.000257,7]
[340223732,1728856247102,-2119.61025905,0.00025882,2]
[340223733,1728856247112,-150.112233,0.000259,8]
[340223734,1728856247122,-150.112233,0.000259,7]
[340223735,1728856247132,-151.921265,0.000259,2]
[340223736,1728856247142,-159.075062,0.000259,7]
[340223737,1728856247153,-150.0,0.00025982,2]
[340223738,1728856247164,-526.0,0.00025982,2]
[340223739,1728856247174,-1186.203,0.00025982,2]
[340223740,1728856247186,-1157.0,0.00025982,2]
[340223741,1728856247198,-239.49354593,0.00025994,2]
[340223742,1728856247209,-525.88122509,0.00026,2]
[340223743,1728856247220,-150.0,0.0002604,2]
[340223744,1728856247231,-150.112233,0.000261,10]
[340223745,1728856247241,-150.112233,0.000261,5]
[340223746,1728856247251,-150.112233,0.000261,6]
[340223747,1728856247263,-150.112233,0.000262,9]
[340223748,1728856247273,-250.0,0.00026201,2]
[340223749,1728856247283,-10671.55994277,0.0002625,2]
[340223750,1728856247293,-239.49354593,0.00026333,2]
[340223751,1728856247303,-200.0,0.0002636,14]
[340223752,1728856247315,-150.112233,0.000264,7]
[340223753,1728856247324,-150.112233,0.000264,9]
[340223754,1728856247334,-150.112233,0.000264,10]
[340223755,1728856247345,-1429.24631544,0.0002642,4]
[340223756,1728856247355,-2143.86947316,0.00026423,4]
[340223757,1728856247365,-1748.1,0.00026427,3]
[340223758,1728856247375,-874.06,0.00026427,3]
[340223759,1728856247384,-586.64,0.00026427,3]
[340223760,1728856247396,-209.33552513,0.00026429,8]
[340223761,1728856247406,-69330.95531835,0.0002643,2]
[340223762,1728856247415,-504.14125426,0.00026442,2]
[340223763,1728856247424,-500.0,0.00026442,2]
[340223764,1728856247434,-335.46923547,0.00026442,2]
[340223765,1728856247443,-1000.0,0.00026442,2]
[340223766,1728856247452,-500.0,0.00026442,2]
[340223767,1728856247463,-507.44901151,0.00026442,2]
[340223768,1728856247474,-1000.0,0.00026442,2]
[340223769,1728856247485,-1000.0,0.00026442,2]
[340223770,1728856247495,-476.59051778,0.00026442,2]
[340223771,1728856247506,-1000.0,0.00026442,2]
[340223772,1728856247516,-1000.0,0.00026447,2]
[340223773,1728856247528,-500.74090198,0.00026473,2]
[340223774,1728856247541,-500.0,0.00026473,2]
[340223775,1728856247551,-500.0,0.00026473,2]
[340223776,1728856247562,-500.0,0.00026473,2]
[340223777,1728856247573,-608.73119954,0.00026473,2]
[340223778,1728856247585,-500.0,0.00026473,2]
[340223779,1728856247595,-500.0,0.00026473,2]
[340223780,1728856247605,-500.0,0.00026473,2]
[340223781,1728856247615,-504.74557452,0.00026473,2]
[340223782,1728856247625,-500.0,0.00026473,2]
[340223783,1728856247635,-541.23806229,0.00026473,2]
[340223784,1728856247645,-150.112233,0.000265,9]
[340223785,1728856247656,-2802.97,0.000266,14]
[340223786,1728856247666,-1671.6,0.000266,14]
[340223787,1728856247677,-150.112233,0.000266,8]
[340223788,1728856247687,-500.0,0.00026639,2]
[340223789,1728856247699,-379.88423943,0.00026673,2]
[340223790,1728856247710,-500.0,0.00026673,2]
[340223791,1728856247721,-500.0,0.00026673,2]
[340223792,1728856247732,-2143.86947316,0.00026687,4]
[340223793,1728856247742,-714.62315772,0.00026697,4]
[340223794,1728856247753,-150.112234,0.000267,10]
[340223795,1728856247763,-150.112233,0.000267,7]
[340223796,1728856247774,-66214.76489315,0.00026707,2]
[340223797,1728856247785,-150.112233,0.000268,5]
[340223798,1728856247796,-350.9566197,0.00026849,2]
[340223799,1728856247855,-342.09082404,0.00026881,2]
[340223800,1728856247864,-503.82563144,0.00026882,10]
[340223801,1728856247874,-150.112233,0.000269,10]
[340223802,1728856247883,-150.112233,0.000269,8]
[340223803,1728856247892,-150.0,0.000269,2]
[340223804,1728856247902,-150.112233,0.000269,6]
[340223805,1728856247911,-150.112233,0.00027,9]
[340223806,1728856247920,-150.112233,0.00027,10]
[340223807,1728856247930,-420.0,0.0002706,2]
[340223808,1728856247939,-150.112233,0.000272,8]
[340223809,1728856247949,-150.112233,0.000272,7]
[340223810,1728856247959,-324.1,0.00027257,2]
[340223811,1728856247968,-4128.03947476,0.00027362,2]
[340223812,1728856247977,-500.0,0.00027373,2]
[340223813,1728856247987,-500.0,0.00027373,2]
[340223814,1728856247998,-500.0,0.00027373,2]
[340223815,1728856248009,-500.0,0.00027373,2]
[340223816,1728856248020,-150.0,0.00027373,2]
[340223817,1728856248029,-500.0,0.00027373,2]
[340223818,1728856248039,-500.0,0.00027373,2]
[340223819,1728856248048,-2143.86947316,0.00027387,4]
[340223820,1728856248057,-202.63,0.00027396,2]
[340223821,1728856248066,-202.63,0.00027396,2]
[340223822,1728856248076,-202.63,0.00027396,2]
[340223823,1728856248085,-202.63,0.00027396,2]
[340223824,1728856248094,-202.63,0.00027396,2]
[340223825,1728856248103,-202.63,0.00027396,2]
[340223826,1728856248112,-202.63,0.00027396,2]
[340223827,1728856248121,-202.63,0.00027396,2]
[340223828,1728856248130,-202.63,0.00027396,2]
[340223829,1728856248139,-202.63,0.00027396,2]
[340223830,1728856248148,-500.0,0.00027397,2]
[340223831,1728856248158,-500.0,0.00027397,2]
[340223832,1728856248167,-501.85708738,0.00027397,2]
[340223833,1728856248176,-500.0,0.00027397,2]
[340223834,1728856248185,-500.0,0.00027397,2]
[340223835,1728856248195,-182.19388575,0.00027397,2]
[340223836,1728856248204,-505.60251081,0.00027397,2]
[340223837,1728856248216,-500.0,0.00027397,2]
[340223838,1728856248229,-500.0,0.00027397,2]
[340223839,1728856248238,-261.20641156,0.00027397,2]
[340223840,1728856248253,-500.0,0.00027397,2]
[340223841,1728856248262,-500.0,0.00027397,2]
[340223842,1728856248271,-500.0,0.00027397,2]
[340223843,1728856248282,-500.0,0.00027397,2]
[340223844,1728856248292,-500.59298068,0.00027397,2]
[340223845,1728856248303,-183.12823941,0.00027397,2]
[340223846,1728856248312,-500.0,0.00027397,2]
[340223847,1728856248321,-500.0,0.00027397,2]
[340223848,1728856248330,-966.11,0.00027397,2]
[340223849,1728856248339,-500.0,0.00027397,2]
[340223850,1728856248349,-500.0,0.00027397,2]
[340223851,1728856248358,-1505.01,0.00027397,2]
[340223852,1728856248367,-500.0,0.00027397,2]
[340223853,1728856248377,-500.0,0.00027397,2]
[340223854,1728856248386,-2460.11,0.00027397,2]
[340223855,1728856248395,-500.0,0.00027397,2]
[340223856,1728856248404,-500.0,0.00027397,2]
[340223857,1728856248413,-599.29,0.00027397,2]
[340223858,1728856248422,-500.0,0.00027397,2]
[340223859,1728856248431,-545.66076148,0.00027397,2]
[340223860,1728856248440,-645.20568078,0.00027397,2]
[340223861,1728856248449,-514.62586278,0.00027397,2]
[340223862,1728856248458,-500.0,0.00027397,2]
[340223863,1728856248469,-500.0,0.00027397,2]
[340223864,1728856248481,-500.0,0.00027397,2]
[340223865,1728856248491,-356.02125151,0.00027397,2]
[340223866,1728856248502,-445.75536967,0.00027397,2]
[340223867,1728856248512,-507.62261026,0.00027397,2]
[340223868,1728856248522,-203.59648359,0.00027397,2]
[340223869,1728856248533,-500.0,0.00027397,2]
[340223870,1728856248544,-254.80506845,0.00027397,2]
[340223871,1728856248554,-419.05014871,0.00027397,2]
[340223872,1728856248563,-500.0,0.00027397,2]
[340223873,1728856248573,-500.0,0.00027397,2]
[340223874,1728856248584,-1945.06,0.00027397,2]
[340223875,1728856248595,-197.6368314,0.00027397,2]
[340223876,1728856248604,-500.0,0.00027397,2]
[340223877,1728856248615,-500.0,0.00027397,2]
[340223878,1728856248626,-512.5567681,0.00027397,2]
[340223879,1728856248635,-500.0,0.00027397,2]
[340223880,1728856248645,-498.0,0.00027397,2]
[340223881,1728856248655,-500.0,0.00027397,2]
[340223882,1728856248664,-539.74004337,0.00027397,2]
[340223883,1728856248674,-500.0,0.00027397,2]
[340223884,1728856248683,-500.0,0.00027397,2]
[340223885,1728856248692,-2000.0,0.00027397,2]
[340223886,1728856248703,-150.0,0.00027397,2]
[340223887,1728856248713,-337.95350302,0.00027397,2]
[340223888,1728856248723,-500.0,0.00027397,2]
[340223889,1728856248734,-500.0,0.00027397,2]
[340223890,1728856248745,-150.0,0.00027397,2]
[340223891,1728856248757,-500.0,0.00027397,2]
[340223892,1728856248769,-150.0,0.00027397,2]
[340223893,1728856248780,-500.0,0.00027397,2]
[340223894,1728856248838,-500.0,0.00027397,2]
[340223895,1728856248849,-500.0,0.00027397,2]
[340223896,1728856248859,-500.0,0.00027397,2]
[340223897,1728856248869,-8095.62,0.00027397,2]
[340223898,1728856248878,-414.02090558,0.00027397,2]
[340223899,1728856248888,-500.0,0.00027397,2]
[340223900,1728856248899,-500.0,0.00027397,2]
[340223901,1728856248909,-500.0,0.00027397,2]
[340223902,1728856248920,-500.0,0.00027397,2]
[340223903,1728856248933,-225.18265986,0.00027397,2]
[340223904,1728856248943,-500.0,0.00027397,2]
[340223905,1728856248953,-672.92,0.00027397,2]
[340223906,1728856248965,-880.17,0.00027397,2]
[340223907,1728856248976,-500.0,0.00027397,2]
[340223908,1728856248985,-500.0,0.00027397,2]
[340223909,1728856248996,-556.12612333,0.00027397,2]
[340223910,1728856249006,-2007.73,0.00027397,2]
[340223911,1728856249016,-224.24277896,0.00027397,2]
[340223912,1728856249027,-171.34166217,0.00027397,2]
[340223913,1728856249038,-203.77210484,0.00027397,2]
[340223914,1728856249048,-241.43601245,0.00027397,2]
[340223915,1728856249058,-500.0,0.00027397,2]
[340223916,1728856249069,-500.0,0.00027397,2]
[340223917,1728856249079,-500.0,0.00027397,2]
[340223918,1728856249088,-500.0,0.00027397,2]
[340223919,1728856249097,-500.0,0.00027397,2]
[340223920,1728856249108,-500.0,0.00027397,2]
[340223921,1728856249119,-500.0,0.00027397,2]
[340223922,1728856249128,-500.0,0.00027397,2]
[340223923,1728856249140,-500.0,0.00027397,2]
[340223924,1728856249150,-279.10278386,0.00027397,2]
[340223925,1728856249160,-500.0,0.00027397,2]
[340223926,1728856249171,-500.0,0.00027397,2]
[340223927,1728856249181,-500.0,0.00027397,2]
[340223928,1728856249191,-212.77104864,0.00027397,2]
[340223929,1728856249201,-532.13236861,0.00027397,2]
[340223930,1728856249211,-500.0,0.00027397,2]
[340223931,1728856249222,-500.0,0.00027397,2]
[340223932,1728856249232,-500.0,0.00027397,2]
[340223933,1728856249242,-500.0,0.00027397,2]
[340223934,1728856249253,-500.0,0.00027397,2]
[340223935,1728856249263,-500.0,0.00027397,2]
[340223936,1728856249273,-500.0,0.00027397,2]
[340223937,1728856249283,-500.0,0.00027397,2]
[340223938,1728856249294,-500.0,0.00027397,2]
[340223939,1728856249305,-500.0,0.00027397,2]
[340223940,1728856249315,-500.0,0.00027397,2]
[340223941,1728856249325,-561.03215799,0.00027397,2]
[340223942,1728856249336,-500.0,0.00027397,2]
[340223943,1728856249347,-500.0,0.00027397,2]
[340223944,1728856249359,-500.0,0.00027397,2]
[340223945,1728856249369,-500.0,0.00027397,2]
[340223946,1728856249379,-560.95124384,0.00027397,2]
[340223947,1728856249389,-500.0,0.00027397,2]
[340223948,1728856249399,-500.0,0.00027397,2]
[340223949,1728856249409,-500.0,0.00027397,2]
[340223950,1728856249420,-3058.31,0.00027397,2]
[340223951,1728856249430,-166.30229957,0.00027397,2]
[340223952,1728856249441,-196.65617945,0.00027397,2]
[340223953,1728856249451,-193.26206691,0.00027397,2]
[340223954,1728856249462,-500.0,0.00027397,2]
[340223955,1728856249472,-503.7799624,0.00027397,2]
[340223956,1728856249482,-579.78880189,0.00027397,2]
[340223957,1728856249492,-573.2649613,0.00027397,2]
[340223958,1728856249501,-500.0,0.00027397,2]
[340223959,1728856249510,-500.0,0.00027397,2]
[340223960,1728856249520,-500.0,0.00027397,2]
[340223961,1728856249529,-231.19693935,0.00027397,2]
[340223962,1728856249539,-500.0,0.00027397,2]
[340223963,1728856249549,-500.0,0.00027397,2]
[340223964,1728856249558,-5000.0,0.00027397,2]
[340223965,1728856249569,-5000.0,0.00027397,2]
[340223966,1728856249579,-645.70711421,0.00027397,2]
[340223967,1728856249589,-5000.0,0.00027397,2]
[340223968,1728856249599,-5000.0,0.00027397,2]
[340223969,1728856249610,-5000.0,0.00027397,2]
[340223970,1728856249619,-5000.0,0.00027397,2]
[340223971,1728856249630,-5000.0,0.00027397,2]
[340223972,1728856249640,-5000.0,0.00027397,2]
[340223973,1728856249650,-5000.0,0.00027397,2]
[340223974,1728856249659,-5000.0,0.00027397,2]
[340223975,1728856249670,-5000.0,0.00027397,2]
[340223976,1728856249679,-5000.0,0.00027397,2]
[340223977,1728856249688,-5000.0,0.00027397,2]
[340223978,1728856249698,-5000.0,0.00027397,2]
[340223979,1728856249709,-500.0,0.00027397,2]
[340223980,1728856249719,-5000.0,0.00027397,2]
[340223981,1728856249730,-5000.0,0.00027397,2]
[340223982,1728856249786,-5000.0,0.00027397,2]
[340223983,1728856249796,-33884.5,0.00027397,2]
[340223984,1728856249807,-2723.80889707,0.00027397,2]
[340223985,1728856250137,-250.0,0.00024915,2]
[340223986,1728856250155,-250.0,0.00024981,2]
[340223987,1728856250173,-107.41163273,0.00025047,2]
[340223988,1728856250192,-142.58836727,0.00025047,2]
[340223989,1728856250212,-424.99,0.00025058,3]
[340223990,1728856250232,-250.0,0.00025113,2]
[340223991,1728856250250,-250.0,0.00025179,2]
[340223992,1728856250264,-250.0,0.00025245,2]
[340223993,1728856250282,-250.0,0.00025311,2]
[340223994,1728856250299,-849.98,0.00026428,3]
[340223995,1728856250317,-500.0,0.00027373,2]
[340223996,1728856250330,-277.99878361,0.00027397,2]
[340223997,1728856250348,-1998.19231932,0.00027397,2]
[340223998,1728856250365,-2503.34139504,0.00027397,2]